[Event "Titled Tuesday Blitz April 19 Early 2022"]
[White "Piliczewski, Bogusz"]
[Black "Melaugh, Shane"]
[WhiteFideId "1104144"]
[BlackFideId "2509580"]
[WhiteElo "1896"]
[BlackElo "1972"]
[Result "0-1"]
[Round "02"]
[TimeControl "180+1"]
[Date "2022.04.19"]
[WhiteClock "0:00:11"]
[BlackClock "0:00:19"]

1. d4 {[%clk 0:03:00]}  e6 {[%clk 0:02:59]} 2. Nf3 {[%clk 0:03:00]}  f5 {[%clk 0:03:00]} 3. Bf4 {[%clk 0:03:00]}  Nf6 {[%clk 0:03:00]} 4. h3 {[%clk 0:03:00]}  b6 {[%clk 0:03:00]} 5. e3 {[%clk 0:03:01]}  Bb7 {[%clk 0:03:01]} 6. Be2 {[%clk 0:03:01]}  Be7 {[%clk 0:03:02]} 7. O-O {[%clk 0:03:01]}  O-O {[%clk 0:03:03]} 8. Nbd2 {[%clk 0:03:02]}  Ne4 {[%clk 0:03:03]} 9. Nxe4 {[%clk 0:03:01]}  fxe4 {[%clk 0:03:04]} 10. Nd2 {[%clk 0:03:01]}  d5 {[%clk 0:03:01]} 11. c4 {[%clk 0:03:00]}  Bd6 {[%clk 0:03:01]} 12. Bxd6 {[%clk 0:02:58]}  Qxd6 {[%clk 0:03:02]} 13. f3 {[%clk 0:02:58]}  Nd7 {[%clk 0:02:51]} 14. fxe4 {[%clk 0:02:48]}  dxe4 {[%clk 0:02:52]} 15. Qc2 {[%clk 0:02:48]}  Qg3 {[%clk 0:02:51]} 16. Qc3 {[%clk 0:02:31]}  e5 {[%clk 0:02:44]} 17. d5 {[%clk 0:02:29]}  Nc5 {[%clk 0:02:39]} 18. Rxf8+ {[%clk 0:02:13]}  Rxf8 {[%clk 0:02:38]} 19. Rf1 {[%clk 0:02:14]}  Bc8 {[%clk 0:02:29]} 20. Rxf8+ {[%clk 0:02:12]}  Kxf8 {[%clk 0:02:29]} 21. Nf1 {[%clk 0:01:36]}  Qg5 {[%clk 0:02:28]} 22. Kh2 {[%clk 0:01:30]}  h5 {[%clk 0:02:08]} 23. b4 {[%clk 0:01:29]}  Nd7 {[%clk 0:02:05]} 24. c5 {[%clk 0:01:22]}  bxc5 {[%clk 0:01:58]} 25. bxc5 {[%clk 0:01:21]}  Qe7 {[%clk 0:01:59]} 26. d6 {[%clk 0:01:10]}  cxd6 {[%clk 0:01:36]} 27. cxd6 {[%clk 0:01:09]}  Qe8 {[%clk 0:01:35]} 28. Qc7 {[%clk 0:01:04]}  Nf6 {[%clk 0:01:19]} 29. Bc4 {[%clk 0:01:04]}  Be6 {[%clk 0:01:12]} 30. Bxe6 {[%clk 0:00:55]}  Qxe6 {[%clk 0:01:13]} 31. Qc6 {[%clk 0:00:41]}  Ne8 {[%clk 0:01:07]} 32. Ng3 {[%clk 0:00:34]}  Qxd6 {[%clk 0:01:00]} 33. Qxe4 {[%clk 0:00:33]}  Nf6 {[%clk 0:00:59]} 34. Qa8+ {[%clk 0:00:32]}  Kf7 {[%clk 0:00:53]} 35. Qxa7+ {[%clk 0:00:32]}  Kg6 {[%clk 0:00:53]} 36. e4 {[%clk 0:00:28]}  Qd2 {[%clk 0:00:33]} 37. Qc7 {[%clk 0:00:20]}  Qf4 {[%clk 0:00:21]} 38. Qc3 {[%clk 0:00:17]}  h4 {[%clk 0:00:22]} 39. a4 {[%clk 0:00:15]}  Nxe4 {[%clk 0:00:19]} 40. Qc6+ {[%clk 0:00:13]}  Nf6 {[%clk 0:00:19]} 41. a5 {[%clk 0:00:11]}  hxg3+ {[%clk 0:00:18]} 42. Kg1 {[%clk 0:00:11]}  Qf2+ {[%clk 0:00:18]} 43. Kh1 {[%clk 0:00:11]}  Qf1# {[%clk 0:00:19]} 0-1


[Site "https://www.chess.com"]

[Event "Titled Tuesday Blitz April 19 Early 2022"]
[White "Plazuelo Pascual, Juan"]
[Black "Makarian, Rudik"]
[WhiteFideId "32059566"]
[BlackFideId "44105681"]
[WhiteElo "2359"]
[BlackElo "2388"]
[Result "1-0"]
[Round "02"]
[TimeControl "180+1"]
[Date "2022.04.19"]
[WhiteClock "0:00:15"]
[BlackClock "0:00:03"]

1. d4 {[%clk 0:02:59]}  Nf6 {[%clk 0:02:56]} 2. c4 {[%clk 0:02:59]}  d6 {[%clk 0:02:52]} 3. Nc3 {[%clk 0:02:58]}  e5 {[%clk 0:02:52]} 4. Nf3 {[%clk 0:02:51]}  Nbd7 {[%clk 0:02:51]} 5. Bg5 {[%clk 0:02:48]}  Be7 {[%clk 0:02:52]} 6. e3 {[%clk 0:02:49]}  O-O {[%clk 0:02:52]} 7. Qc2 {[%clk 0:02:48]}  h6 {[%clk 0:02:48]} 8. Bh4 {[%clk 0:02:48]}  c6 {[%clk 0:02:48]} 9. O-O-O {[%clk 0:02:48]}  Qc7 {[%clk 0:02:44]} 10. h3 {[%clk 0:02:47]}  Re8 {[%clk 0:02:38]} 11. g4 {[%clk 0:02:47]}  Nf8 {[%clk 0:01:53]} 12. g5 {[%clk 0:02:39]}  hxg5 {[%clk 0:01:51]} 13. Bxg5 {[%clk 0:02:40]}  exd4 {[%clk 0:01:44]} 14. Nxd4 {[%clk 0:02:39]}  N6h7 {[%clk 0:01:33]} 15. h4 {[%clk 0:02:21]}  Ne6 {[%clk 0:01:25]} 16. Bxe7 {[%clk 0:02:18]}  Nxd4 {[%clk 0:01:24]} 17. Bxd6 {[%clk 0:01:58]}  Qxd6 {[%clk 0:01:25]} 18. Rxd4 {[%clk 0:01:58]}  Qh6 {[%clk 0:01:22]} 19. Bd3 {[%clk 0:01:52]}  Nf6 {[%clk 0:01:22]} 20. Ne4 {[%clk 0:01:42]}  Nxe4 {[%clk 0:01:21]} 21. Rxe4 {[%clk 0:01:42]}  Rxe4 {[%clk 0:01:18]} 22. Bxe4 {[%clk 0:01:43]}  Be6 {[%clk 0:01:19]} 23. h5 {[%clk 0:01:41]}  Qf6 {[%clk 0:01:14]} 24. h6 {[%clk 0:01:31]}  g6 {[%clk 0:01:13]} 25. f4 {[%clk 0:01:30]}  Re8 {[%clk 0:01:06]} 26. Rf1 {[%clk 0:01:18]}  Qh4 {[%clk 0:00:41]} 27. Bxg6 {[%clk 0:01:11]}  Qxh6 {[%clk 0:00:35]} 28. Rg1 {[%clk 0:00:56]}  Kf8 {[%clk 0:00:35]} 29. Be4 {[%clk 0:00:56]}  Qf6 {[%clk 0:00:30]} 30. Qd2 {[%clk 0:00:54]}  c5 {[%clk 0:00:21]} 31. Qd6+ {[%clk 0:00:54]}  Qe7 {[%clk 0:00:22]} 32. Qe5 {[%clk 0:00:50]}  Qh4 {[%clk 0:00:08]} 33. Rh1 {[%clk 0:00:36]}  Qf2 {[%clk 0:00:01]} 34. Qxc5+ {[%clk 0:00:20]}  Re7 {[%clk 0:00:02]} 35. Rh8+ {[%clk 0:00:13]}  Kg7 {[%clk 0:00:02]} 36. Qg5+ {[%clk 0:00:13]}  Kxh8 {[%clk 0:00:02]} 37. Qh6+ {[%clk 0:00:14]}  Kg8 {[%clk 0:00:02]} 38. Qh7+ {[%clk 0:00:15]}  Kf8 {[%clk 0:00:03]} 39. Qh8# {[%clk 0:00:15]} 1-0


[Site "https://www.chess.com"]

[Event "Titled Tuesday Blitz April 19 Early 2022"]
[White "Rangel, Daniel"]
[Black "Bilych, Olexiy"]
[WhiteFideId "2124475"]
[BlackFideId "14156504"]
[WhiteElo "2225"]
[BlackElo "2176"]
[Result "0-1"]
[Round "02"]
[TimeControl "180+1"]
[Date "2022.04.19"]
[WhiteClock "0:00:12"]
[BlackClock "0:00:49"]

1. c4 {[%clk 0:02:51]}  e5 {[%clk 0:02:59]} 2. g3 {[%clk 0:02:29]}  Nc6 {[%clk 0:02:58]} 3. Bg2 {[%clk 0:02:19]}  g6 {[%clk 0:02:58]} 4. Nc3 {[%clk 0:02:16]}  Bg7 {[%clk 0:02:58]} 5. d3 {[%clk 0:02:10]}  d6 {[%clk 0:02:58]} 6. Nf3 {[%clk 0:01:55]}  Nf6 {[%clk 0:02:57]} 7. O-O {[%clk 0:01:47]}  O-O {[%clk 0:02:57]} 8. Rb1 {[%clk 0:01:39]}  a5 {[%clk 0:02:58]} 9. a3 {[%clk 0:01:38]}  Nd4 {[%clk 0:02:58]} 10. b4 {[%clk 0:01:39]}  axb4 {[%clk 0:02:57]} 11. axb4 {[%clk 0:01:40]}  c6 {[%clk 0:02:54]} 12. b5 {[%clk 0:01:37]}  Bg4 {[%clk 0:02:48]} 13. bxc6 {[%clk 0:01:35]}  bxc6 {[%clk 0:02:47]} 14. e3 {[%clk 0:01:27]}  Nxf3+ {[%clk 0:02:45]} 15. Bxf3 {[%clk 0:01:28]}  Bxf3 {[%clk 0:02:45]} 16. Qxf3 {[%clk 0:01:29]}  d5 {[%clk 0:02:42]} 17. cxd5 {[%clk 0:01:23]}  cxd5 {[%clk 0:02:37]} 18. e4 {[%clk 0:01:23]}  d4 {[%clk 0:02:25]} 19. Nb5 {[%clk 0:01:22]}  Qd7 {[%clk 0:02:17]} 20. Bg5 {[%clk 0:01:13]}  Nh5 {[%clk 0:01:46]} 21. g4 {[%clk 0:01:09]}  h6 {[%clk 0:01:32]} 22. gxh5 {[%clk 0:01:02]}  hxg5 {[%clk 0:01:31]} 23. hxg6 {[%clk 0:00:43]}  fxg6 {[%clk 0:01:32]} 24. Qg2 {[%clk 0:00:41]}  Ra5 {[%clk 0:01:13]} 25. Qxg5 {[%clk 0:00:28]}  Rxb5 {[%clk 0:01:10]} 26. Qxg6 {[%clk 0:00:22]}  Rf6 {[%clk 0:00:53]} 27. Qg3 {[%clk 0:00:17]}  Rxb1 {[%clk 0:00:48]} 28. Rxb1 {[%clk 0:00:16]}  Qf7 {[%clk 0:00:49]} 29. Rb8+ {[%clk 0:00:15]}  Kh7 {[%clk 0:00:49]} 30. Qh3+ {[%clk 0:00:12]}  Rh6 {[%clk 0:00:49]} 0-1


[Site "https://www.chess.com"]

[Event "Titled Tuesday Blitz April 19 Early 2022"]
[White "Rom, Jasper"]
[Black "Grinev, Valeriy"]
[WhiteFideId "2023733"]
[BlackFideId "14117517"]
[WhiteElo "2233"]
[BlackElo "2345"]
[Result "1-0"]
[Round "02"]
[TimeControl "180+1"]
[Date "2022.04.19"]
[WhiteClock "0:00:06"]
[BlackClock "0:00:28"]

1. e4 {[%clk 0:03:00]}  Nf6 {[%clk 0:02:56]} 2. e5 {[%clk 0:02:58]}  Nd5 {[%clk 0:02:56]} 3. Nc3 {[%clk 0:02:58]}  Nxc3 {[%clk 0:02:55]} 4. dxc3 {[%clk 0:02:58]}  d5 {[%clk 0:02:55]} 5. exd6 {[%clk 0:02:58]}  exd6 {[%clk 0:02:53]} 6. Be3 {[%clk 0:02:58]}  Be7 {[%clk 0:02:48]} 7. Qd2 {[%clk 0:02:57]}  O-O {[%clk 0:02:42]} 8. O-O-O {[%clk 0:02:57]}  Nd7 {[%clk 0:02:42]} 9. Nf3 {[%clk 0:02:55]}  Ne5 {[%clk 0:02:40]} 10. Be2 {[%clk 0:02:42]}  Be6 {[%clk 0:02:36]} 11. Nd4 {[%clk 0:02:37]}  Bd7 {[%clk 0:02:19]} 12. h3 {[%clk 0:02:14]}  c5 {[%clk 0:02:18]} 13. Nf3 {[%clk 0:02:08]}  Be6 {[%clk 0:02:13]} 14. Nxe5 {[%clk 0:01:50]}  dxe5 {[%clk 0:02:14]} 15. Qxd8 {[%clk 0:01:48]}  Rfxd8 {[%clk 0:02:14]} 16. Bf3 {[%clk 0:01:46]}  Rxd1+ {[%clk 0:01:47]} 17. Rxd1 {[%clk 0:01:46]}  Rb8 {[%clk 0:01:48]} 18. b3 {[%clk 0:01:22]}  b6 {[%clk 0:01:47]} 19. c4 {[%clk 0:01:20]}  Rd8 {[%clk 0:01:47]} 20. Bd5 {[%clk 0:01:19]}  Bc8 {[%clk 0:01:39]} 21. f4 {[%clk 0:01:06]}  exf4 {[%clk 0:01:29]} 22. Bxf4 {[%clk 0:01:07]}  Kf8 {[%clk 0:01:29]} 23. Bb8 {[%clk 0:00:58]}  Bxh3 {[%clk 0:01:20]} 24. Bxa7 {[%clk 0:00:52]}  Bg5+ {[%clk 0:01:19]} 25. Kb1 {[%clk 0:00:42]}  Bg4 {[%clk 0:01:05]} 26. Rf1 {[%clk 0:00:40]}  Rd7 {[%clk 0:00:50]} 27. Bxb6 {[%clk 0:00:39]}  Be3 {[%clk 0:00:37]} 28. a4 {[%clk 0:00:35]}  Rd6 {[%clk 0:00:37]} 29. a5 {[%clk 0:00:22]}  Be6 {[%clk 0:00:37]} 30. Bxe6 {[%clk 0:00:09]}  Rxe6 {[%clk 0:00:38]} 31. Re1 {[%clk 0:00:10]}  f5 {[%clk 0:00:33]} 32. Rxe3 {[%clk 0:00:06]}  Rxe3 {[%clk 0:00:29]} 33. Bxc5+ {[%clk 0:00:06]}  Ke8 {[%clk 0:00:30]} 34. Bxe3 {[%clk 0:00:05]}  Kd7 {[%clk 0:00:30]} 35. b4 {[%clk 0:00:06]}  Kc6 {[%clk 0:00:31]} 36. b5+ {[%clk 0:00:06]}  Kb7 {[%clk 0:00:31]} 37. a6+ {[%clk 0:00:06]}  Kc8 {[%clk 0:00:28]} 38. b6 {[%clk 0:00:06]}  Kb8 {[%clk 0:00:28]} 39. Bf4+ {[%clk 0:00:06]} 1-0


[Site "https://www.chess.com"]

[Event "Titled Tuesday Blitz April 19 Early 2022"]
[White "Sadovsky, Artem"]
[Black "Antonio, Jorge Carlos"]
[WhiteFideId "4155840"]
[BlackFideId "113190"]
[WhiteElo "2314"]
[BlackElo "2247"]
[Result "1-0"]
[Round "02"]
[TimeControl "180+1"]
[Date "2022.04.19"]
[WhiteClock "0:00:08"]
[BlackClock "0:00:24"]

1. d4 {[%clk 0:03:00]}  d5 {[%clk 0:02:59]} 2. Nf3 {[%clk 0:03:01]}  c6 {[%clk 0:02:57]} 3. g3 {[%clk 0:03:02]}  g6 {[%clk 0:02:53]} 4. Bg2 {[%clk 0:03:03]}  h5 {[%clk 0:02:51]} 5. O-O {[%clk 0:03:04]}  Bg7 {[%clk 0:02:48]} 6. h4 {[%clk 0:03:01]}  Nf6 {[%clk 0:02:45]} 7. Nc3 {[%clk 0:03:01]}  O-O {[%clk 0:02:44]} 8. Ng5 {[%clk 0:03:01]}  Bf5 {[%clk 0:02:39]} 9. Re1 {[%clk 0:02:48]}  Ng4 {[%clk 0:02:36]} 10. f3 {[%clk 0:02:44]}  Nh6 {[%clk 0:02:33]} 11. Be3 {[%clk 0:02:38]}  f6 {[%clk 0:02:30]} 12. Nh3 {[%clk 0:02:30]}  Bxh3 {[%clk 0:02:30]} 13. Bxh3 {[%clk 0:02:26]}  f5 {[%clk 0:02:28]} 14. Bg5 {[%clk 0:02:22]}  Nd7 {[%clk 0:02:26]} 15. e4 {[%clk 0:02:13]}  dxe4 {[%clk 0:02:22]} 16. fxe4 {[%clk 0:02:14]}  Qc7 {[%clk 0:02:17]} 17. e5 {[%clk 0:01:55]}  Nf7 {[%clk 0:02:12]} 18. Bf4 {[%clk 0:01:49]}  e6 {[%clk 0:02:11]} 19. Ne2 {[%clk 0:01:45]}  Nb6 {[%clk 0:02:07]} 20. c3 {[%clk 0:01:41]}  Nd5 {[%clk 0:02:06]} 21. Qb3 {[%clk 0:01:41]}  a5 {[%clk 0:02:01]} 22. a4 {[%clk 0:01:39]}  Ra6 {[%clk 0:01:57]} 23. Rad1 {[%clk 0:01:35]}  Rb6 {[%clk 0:01:54]} 24. Qc2 {[%clk 0:01:36]}  Rc8 {[%clk 0:01:46]} 25. Bg2 {[%clk 0:01:23]}  Rd8 {[%clk 0:01:43]} 26. Nc1 {[%clk 0:01:19]}  c5 {[%clk 0:01:41]} 27. Bxd5 {[%clk 0:01:04]}  Rxd5 {[%clk 0:01:37]} 28. Qf2 {[%clk 0:00:48]}  Qd8 {[%clk 0:01:32]} 29. Nd3 {[%clk 0:00:43]}  cxd4 {[%clk 0:01:28]} 30. c4 {[%clk 0:00:44]}  Rd7 {[%clk 0:01:23]} 31. Nc5 {[%clk 0:00:39]}  Re7 {[%clk 0:01:20]} 32. Rxd4 {[%clk 0:00:36]}  Qc8 {[%clk 0:01:16]} 33. Rd6 {[%clk 0:00:24]}  Rxb2 {[%clk 0:01:11]} 34. Qxb2 {[%clk 0:00:14]}  Qxc5+ {[%clk 0:01:09]} 35. Qf2 {[%clk 0:00:13]}  Qxf2+ {[%clk 0:01:03]} 36. Kxf2 {[%clk 0:00:14]}  Nxd6 {[%clk 0:00:59]} 37. exd6 {[%clk 0:00:15]}  Rd7 {[%clk 0:00:56]} 38. Rxe6 {[%clk 0:00:13]}  Kf7 {[%clk 0:00:53]} 39. Re1 {[%clk 0:00:13]}  Bf8 {[%clk 0:00:52]} 40. c5 {[%clk 0:00:11]}  Bg7 {[%clk 0:00:46]} 41. Ke3 {[%clk 0:00:10]}  Bf6 {[%clk 0:00:43]} 42. Kd3 {[%clk 0:00:10]}  Bg7 {[%clk 0:00:37]} 43. Kc4 {[%clk 0:00:10]}  Bf6 {[%clk 0:00:35]} 44. Kd5 {[%clk 0:00:09]}  Bc3 {[%clk 0:00:33]} 45. Re2 {[%clk 0:00:07]}  Bb4 {[%clk 0:00:32]} 46. c6 {[%clk 0:00:07]}  bxc6+ {[%clk 0:00:32]} 47. Kxc6 {[%clk 0:00:08]}  Ra7 {[%clk 0:00:26]} 48. d7 {[%clk 0:00:09]}  Ra6+ {[%clk 0:00:24]} 49. Kb7 {[%clk 0:00:08]} 1-0


[Site "https://www.chess.com"]

[Event "Titled Tuesday Blitz April 19 Early 2022"]
[White "Sailer, Mike"]
[Black "Topalov, Aleksandar"]
[WhiteFideId "2012901"]
[BlackFideId "925659"]
[WhiteElo "2109"]
[BlackElo "2158"]
[Result "1/2-1/2"]
[Round "02"]
[TimeControl "180+1"]
[Date "2022.04.19"]
[WhiteClock "0:00:05"]
[BlackClock "0:00:37"]

1. d4 {[%clk 0:02:58]}  Nf6 {[%clk 0:02:58]} 2. Nf3 {[%clk 0:02:58]}  c5 {[%clk 0:02:58]} 3. c3 {[%clk 0:02:58]}  b6 {[%clk 0:02:57]} 4. Bf4 {[%clk 0:02:56]}  Bb7 {[%clk 0:02:57]} 5. e3 {[%clk 0:02:55]}  e6 {[%clk 0:02:57]} 6. Be2 {[%clk 0:02:55]}  Be7 {[%clk 0:02:57]} 7. O-O {[%clk 0:02:55]}  O-O {[%clk 0:02:58]} 8. h3 {[%clk 0:02:56]}  d6 {[%clk 0:02:57]} 9. Nbd2 {[%clk 0:02:54]}  cxd4 {[%clk 0:02:53]} 10. exd4 {[%clk 0:02:54]}  Nbd7 {[%clk 0:02:49]} 11. Re1 {[%clk 0:02:54]}  Qc7 {[%clk 0:02:50]} 12. a4 {[%clk 0:02:53]}  a6 {[%clk 0:02:49]} 13. Bd3 {[%clk 0:02:43]}  Rfe8 {[%clk 0:02:47]} 14. Bh2 {[%clk 0:02:38]}  Bf8 {[%clk 0:02:47]} 15. Rc1 {[%clk 0:02:31]}  Rac8 {[%clk 0:02:44]} 16. c4 {[%clk 0:02:25]}  Qb8 {[%clk 0:02:42]} 17. a5 {[%clk 0:02:19]}  bxa5 {[%clk 0:02:41]} 18. Qa4 {[%clk 0:02:15]}  Bxf3 {[%clk 0:02:30]} 19. Nxf3 {[%clk 0:02:08]}  Qb4 {[%clk 0:02:30]} 20. Ra1 {[%clk 0:01:57]}  Rb8 {[%clk 0:02:13]} 21. Qxa5 {[%clk 0:01:55]}  Qxa5 {[%clk 0:02:04]} 22. Rxa5 {[%clk 0:01:54]}  Rxb2 {[%clk 0:02:04]} 23. Rxa6 {[%clk 0:01:54]}  Rb3 {[%clk 0:01:46]} 24. Bf1 {[%clk 0:01:48]}  d5 {[%clk 0:01:44]} 25. c5 {[%clk 0:01:42]}  Rc3 {[%clk 0:01:44]} 26. Ne5 {[%clk 0:01:33]}  Nxe5 {[%clk 0:01:44]} 27. Bxe5 {[%clk 0:01:33]}  Nd7 {[%clk 0:01:40]} 28. Bg3 {[%clk 0:01:28]}  Rc8 {[%clk 0:01:34]} 29. Ra7 {[%clk 0:01:24]}  Nf6 {[%clk 0:01:34]} 30. Rb1 {[%clk 0:01:16]}  Ne4 {[%clk 0:01:30]} 31. Bf4 {[%clk 0:01:12]}  f6 {[%clk 0:01:07]} 32. Rbb7 {[%clk 0:00:59]}  g5 {[%clk 0:01:00]} 33. Bh2 {[%clk 0:00:39]}  Rc1 {[%clk 0:01:00]} 34. Bd6 {[%clk 0:00:21]}  Nd2 {[%clk 0:00:41]} 35. Bxf8 {[%clk 0:00:18]}  Nxf1 {[%clk 0:00:41]} 36. Rg7+ {[%clk 0:00:08]}  Kxf8 {[%clk 0:00:41]} 37. Raf7+ {[%clk 0:00:06]}  Ke8 {[%clk 0:00:41]} 38. Re7+ {[%clk 0:00:07]}  Kf8 {[%clk 0:00:40]} 39. Ref7+ {[%clk 0:00:05]}  Ke8 {[%clk 0:00:40]} 40. Re7+ {[%clk 0:00:04]}  Kd8 {[%clk 0:00:37]} 41. Rd7+ {[%clk 0:00:05]}  Ke8 {[%clk 0:00:37]} 42. Rde7+ {[%clk 0:00:05]} 1/2-1/2


[Site "https://www.chess.com"]

[Event "Titled Tuesday Blitz April 19 Early 2022"]
[White "Saksham, Rautela"]
[Black "Lagunov, Evgenij"]
[WhiteFideId "35046977"]
[BlackFideId "4125363"]
[WhiteElo "1990"]
[BlackElo "2200"]
[Result "1-0"]
[Round "02"]
[TimeControl "180+1"]
[Date "2022.04.19"]
[WhiteClock "0:00:01"]
[BlackClock "0:00:01"]

1. e4 {[%clk 0:02:58]}  c5 {[%clk 0:02:59]} 2. Nf3 {[%clk 0:02:58]}  e6 {[%clk 0:03:00]} 3. d4 {[%clk 0:02:58]}  cxd4 {[%clk 0:02:58]} 4. Nxd4 {[%clk 0:02:59]}  Nf6 {[%clk 0:02:58]} 5. Nc3 {[%clk 0:02:59]}  Nc6 {[%clk 0:02:58]} 6. Nxc6 {[%clk 0:02:57]}  bxc6 {[%clk 0:02:57]} 7. e5 {[%clk 0:02:58]}  Nd5 {[%clk 0:02:57]} 8. Ne4 {[%clk 0:02:58]}  Qc7 {[%clk 0:02:56]} 9. f4 {[%clk 0:02:39]}  Qb6 {[%clk 0:02:45]} 10. c4 {[%clk 0:02:19]}  Bb4+ {[%clk 0:02:24]} 11. Ke2 {[%clk 0:02:19]}  Ba6 {[%clk 0:02:19]} 12. Kf3 {[%clk 0:02:07]}  f5 {[%clk 0:02:18]} 13. exf6 {[%clk 0:02:06]}  Nxf6 {[%clk 0:02:15]} 14. c5 {[%clk 0:02:05]}  Bxc5 {[%clk 0:02:08]} 15. Nxc5 {[%clk 0:01:44]}  Bxf1 {[%clk 0:02:06]} 16. Na4 {[%clk 0:01:33]}  Bxg2+ {[%clk 0:01:25]} 17. Kxg2 {[%clk 0:01:32]}  Qb4 {[%clk 0:01:16]} 18. Nc3 {[%clk 0:01:18]}  O-O {[%clk 0:01:07]} 19. Rf1 {[%clk 0:01:10]}  d5 {[%clk 0:01:06]} 20. Qe2 {[%clk 0:00:58]}  Rae8 {[%clk 0:01:02]} 21. a3 {[%clk 0:00:50]}  Qd6 {[%clk 0:00:54]} 22. Qe5 {[%clk 0:00:48]}  Qe7 {[%clk 0:00:38]} 23. h3 {[%clk 0:00:32]}  g6 {[%clk 0:00:28]} 24. Be3 {[%clk 0:00:27]}  c5 {[%clk 0:00:25]} 25. Bg1 {[%clk 0:00:20]}  Nh5 {[%clk 0:00:23]} 26. Rae1 {[%clk 0:00:14]}  Rf5 {[%clk 0:00:15]} 27. Qe2 {[%clk 0:00:08]}  Nxf4+ {[%clk 0:00:11]} 28. Rxf4 {[%clk 0:00:08]}  Rxf4 {[%clk 0:00:11]} 29. Bh2 {[%clk 0:00:08]}  Rd4 {[%clk 0:00:10]} 30. Be5 {[%clk 0:00:08]}  Qg5+ {[%clk 0:00:08]} 31. Kh2 {[%clk 0:00:06]}  Rd2 {[%clk 0:00:07]} 32. Qxd2 {[%clk 0:00:04]}  Qxd2+ {[%clk 0:00:06]} 33. Re2 {[%clk 0:00:05]}  Qd3 {[%clk 0:00:06]} 34. Kg2 {[%clk 0:00:04]}  Rf8 {[%clk 0:00:06]} 35. Re1 {[%clk 0:00:03]}  d4 {[%clk 0:00:05]} 36. Ne4 {[%clk 0:00:03]}  Qf3+ {[%clk 0:00:04]} 37. Kg1 {[%clk 0:00:02]}  d3 {[%clk 0:00:03]} 38. Rd1 {[%clk 0:00:02]}  Qxe4 {[%clk 0:00:01]} 39. Bc3 {[%clk 0:00:01]} 1-0


[Site "https://www.chess.com"]

[Event "Titled Tuesday Blitz April 19 Early 2022"]
[White "Samunenkov, Ihor"]
[Black "Atanejhad, Sahebali"]
[WhiteFideId "14187086"]
[BlackFideId "12506664"]
[WhiteElo "2409"]
[BlackElo "1953"]
[Result "1-0"]
[Round "02"]
[TimeControl "180+1"]
[Date "2022.04.19"]
[WhiteClock "0:00:23"]
[BlackClock "0:01:12"]

1. d4 {[%clk 0:03:00]}  Nf6 {[%clk 0:02:31]} 2. c4 {[%clk 0:03:00]}  e6 {[%clk 0:02:31]} 3. Nf3 {[%clk 0:03:00]}  c5 {[%clk 0:02:30]} 4. d5 {[%clk 0:02:54]}  b5 {[%clk 0:02:30]} 5. dxe6 {[%clk 0:02:43]}  fxe6 {[%clk 0:02:31]} 6. cxb5 {[%clk 0:02:43]}  d5 {[%clk 0:02:29]} 7. Nc3 {[%clk 0:02:43]}  d4 {[%clk 0:02:27]} 8. Nb1 {[%clk 0:02:35]}  Bd6 {[%clk 0:02:25]} 9. Na3 {[%clk 0:02:30]}  O-O {[%clk 0:02:23]} 10. Nc4 {[%clk 0:02:29]}  Bc7 {[%clk 0:02:23]} 11. e3 {[%clk 0:02:20]}  e5 {[%clk 0:02:13]} 12. Ncxe5 {[%clk 0:01:49]}  Re8 {[%clk 0:02:11]} 13. Bc4+ {[%clk 0:01:44]}  Be6 {[%clk 0:02:12]} 14. O-O {[%clk 0:01:38]}  Bxc4 {[%clk 0:02:02]} 15. Nxc4 {[%clk 0:01:38]}  Qd5 {[%clk 0:02:00]} 16. b3 {[%clk 0:01:37]}  d3 {[%clk 0:01:55]} 17. Bb2 {[%clk 0:01:28]}  Ne4 {[%clk 0:01:53]} 18. Ne1 {[%clk 0:01:21]}  Rd8 {[%clk 0:01:45]} 19. Nd2 {[%clk 0:00:56]}  Ng5 {[%clk 0:01:29]} 20. Nef3 {[%clk 0:00:53]}  Ne6 {[%clk 0:01:24]} 21. Nc4 {[%clk 0:00:47]}  Nd7 {[%clk 0:01:22]} 22. Qd2 {[%clk 0:00:46]}  Nb6 {[%clk 0:01:19]} 23. Nxb6 {[%clk 0:00:29]}  axb6 {[%clk 0:01:19]} 24. Rfd1 {[%clk 0:00:24]}  Qh5 {[%clk 0:01:17]} 25. Qc3 {[%clk 0:00:24]}  g5 {[%clk 0:01:12]} 26. Qh8+ {[%clk 0:00:22]}  Kf7 {[%clk 0:01:12]} 27. Qf6+ {[%clk 0:00:23]} 1-0


[Site "https://www.chess.com"]

[Event "Titled Tuesday Blitz April 19 Early 2022"]
[White "Sanal, Vahap"]
[Black "Hua, Lefong"]
[WhiteFideId "6300545"]
[BlackFideId "2602253"]
[WhiteElo "2603"]
[BlackElo "2583"]
[Result "1-0"]
[Round "02"]
[TimeControl "180+1"]
[Date "2022.04.19"]
[WhiteClock "0:00:15"]
[BlackClock "0:00:16"]

1. e4 {[%clk 0:03:00]}  c5 {[%clk 0:02:59]} 2. Nc3 {[%clk 0:03:00]}  g6 {[%clk 0:03:00]} 3. h4 {[%clk 0:02:53]}  h5 {[%clk 0:02:47]} 4. Bc4 {[%clk 0:02:52]}  Bg7 {[%clk 0:02:47]} 5. d3 {[%clk 0:02:53]}  Nc6 {[%clk 0:02:47]} 6. Bg5 {[%clk 0:02:47]}  d6 {[%clk 0:02:44]} 7. Nge2 {[%clk 0:02:46]}  Nf6 {[%clk 0:02:43]} 8. O-O {[%clk 0:02:44]}  O-O {[%clk 0:02:43]} 9. Qd2 {[%clk 0:02:42]}  Bg4 {[%clk 0:02:38]} 10. f3 {[%clk 0:02:40]}  Bd7 {[%clk 0:02:38]} 11. a4 {[%clk 0:02:33]}  a6 {[%clk 0:02:32]} 12. Bh6 {[%clk 0:02:33]}  Rb8 {[%clk 0:02:31]} 13. Bxg7 {[%clk 0:02:27]}  Kxg7 {[%clk 0:02:32]} 14. Qg5 {[%clk 0:02:03]}  e5 {[%clk 0:02:17]} 15. Rf2 {[%clk 0:01:46]}  Be6 {[%clk 0:02:11]} 16. Raf1 {[%clk 0:01:40]}  Bxc4 {[%clk 0:01:57]} 17. dxc4 {[%clk 0:01:40]}  Nd7 {[%clk 0:01:51]} 18. Rd1 {[%clk 0:01:15]}  Qxg5 {[%clk 0:01:43]} 19. hxg5 {[%clk 0:01:15]}  Nd4 {[%clk 0:01:44]} 20. Nc1 {[%clk 0:01:12]}  Rfd8 {[%clk 0:01:38]} 21. g3 {[%clk 0:01:10]}  Nf8 {[%clk 0:01:31]} 22. f4 {[%clk 0:01:10]}  Nfe6 {[%clk 0:01:27]} 23. Nd5 {[%clk 0:01:04]}  h4 {[%clk 0:01:21]} 24. gxh4 {[%clk 0:01:00]}  Nxf4 {[%clk 0:01:21]} 25. Nxf4 {[%clk 0:00:57]}  exf4 {[%clk 0:01:21]} 26. c3 {[%clk 0:00:52]}  Ne6 {[%clk 0:01:17]} 27. Ne2 {[%clk 0:00:53]}  b5 {[%clk 0:01:13]} 28. cxb5 {[%clk 0:00:48]}  axb5 {[%clk 0:01:13]} 29. a5 {[%clk 0:00:49]}  b4 {[%clk 0:01:11]} 30. c4 {[%clk 0:00:41]}  Ra8 {[%clk 0:01:01]} 31. Ra1 {[%clk 0:00:41]}  Ra6 {[%clk 0:00:55]} 32. Nxf4 {[%clk 0:00:41]}  Nxf4 {[%clk 0:00:54]} 33. Rxf4 {[%clk 0:00:42]}  Rda8 {[%clk 0:00:54]} 34. Rd1 {[%clk 0:00:37]}  Rc6 {[%clk 0:00:44]} 35. Rf6 {[%clk 0:00:35]}  Rxa5 {[%clk 0:00:43]} 36. e5 {[%clk 0:00:35]}  Rc8 {[%clk 0:00:38]} 37. exd6 {[%clk 0:00:35]}  Rd8 {[%clk 0:00:38]} 38. Kg2 {[%clk 0:00:25]}  Rd7 {[%clk 0:00:36]} 39. b3 {[%clk 0:00:22]}  Ra2+ {[%clk 0:00:31]} 40. Kg3 {[%clk 0:00:23]}  Rb2 {[%clk 0:00:26]} 41. Rd3 {[%clk 0:00:23]}  Kf8 {[%clk 0:00:25]} 42. Kf3 {[%clk 0:00:15]}  Rh2 {[%clk 0:00:25]} 43. Ke4 {[%clk 0:00:15]}  Rxh4+ {[%clk 0:00:22]} 44. Kd5 {[%clk 0:00:16]}  Rg4 {[%clk 0:00:19]} 45. Kc6 {[%clk 0:00:16]}  Rd8 {[%clk 0:00:19]} 46. Kc7 {[%clk 0:00:14]}  Ra8 {[%clk 0:00:16]} 47. d7 {[%clk 0:00:15]} 1-0


[Site "https://www.chess.com"]